[Event "Titled Tuesday Blitz July 05 Late 2022"]
[White "Olenik Campa, Rudi"]
[Black "Ambartsumova, Karina"]
[WhiteFideId "14633264"]
[BlackFideId "4166299"]
[WhiteElo "2066"]
[BlackElo "2262"]
[Result "1-0"]
[Round "08"]
[TimeControl "180+1"]
[Date "2022.07.06"]
[WhiteClock "0:00:13"]
[BlackClock "0:00:07"]

1. e4 {[%clk 0:03:00]}  e5 {[%clk 0:02:55]} 2. Nf3 {[%clk 0:03:00]}  Nc6 {[%clk 0:02:55]} 3. Bc4 {[%clk 0:03:00]}  Bc5 {[%clk 0:02:55]} 4. O-O {[%clk 0:03:00]}  Nf6 {[%clk 0:02:55]} 5. Re1 {[%clk 0:02:59]}  O-O {[%clk 0:02:53]} 6. d3 {[%clk 0:03:00]}  a6 {[%clk 0:02:50]} 7. c3 {[%clk 0:03:00]}  d6 {[%clk 0:02:50]} 8. a4 {[%clk 0:03:00]}  Ba7 {[%clk 0:02:50]} 9. Nbd2 {[%clk 0:03:00]}  Ne7 {[%clk 0:02:50]} 10. Nf1 {[%clk 0:03:00]}  Ng6 {[%clk 0:02:51]} 11. Ng3 {[%clk 0:03:01]}  c6 {[%clk 0:02:51]} 12. Be3 {[%clk 0:03:00]}  Bxe3 {[%clk 0:02:49]} 13. Rxe3 {[%clk 0:02:59]}  d5 {[%clk 0:02:44]} 14. Bb3 {[%clk 0:02:51]}  Re8 {[%clk 0:02:34]} 15. a5 {[%clk 0:02:50]}  Be6 {[%clk 0:02:27]} 16. exd5 {[%clk 0:02:49]}  Nxd5 {[%clk 0:02:11]} 17. Re1 {[%clk 0:02:49]}  Ndf4 {[%clk 0:02:07]} 18. Bxe6 {[%clk 0:02:45]}  Rxe6 {[%clk 0:02:06]} 19. d4 {[%clk 0:02:42]}  exd4 {[%clk 0:01:58]} 20. Qxd4 {[%clk 0:02:29]}  Qxd4 {[%clk 0:01:45]} 21. Nxd4 {[%clk 0:02:30]}  Rxe1+ {[%clk 0:01:43]} 22. Rxe1 {[%clk 0:02:31]}  Nd3 {[%clk 0:01:39]} 23. Re2 {[%clk 0:02:15]}  Rd8 {[%clk 0:01:36]} 24. Ngf5 {[%clk 0:01:43]}  Kf8 {[%clk 0:01:32]} 25. g3 {[%clk 0:01:42]}  Nge5 {[%clk 0:01:21]} 26. f4 {[%clk 0:01:13]}  Nc4 {[%clk 0:01:16]} 27. b4 {[%clk 0:01:13]}  g6 {[%clk 0:01:04]} 28. Ne3 {[%clk 0:01:03]}  Nc1 {[%clk 0:00:20]} 29. Nxc4 {[%clk 0:00:44]}  Rxd4 {[%clk 0:00:18]} 30. Re1 {[%clk 0:00:44]}  Rxc4 {[%clk 0:00:17]} 31. Rxc1 {[%clk 0:00:44]}  Ke7 {[%clk 0:00:18]} 32. Kf2 {[%clk 0:00:44]}  f5 {[%clk 0:00:17]} 33. Ke3 {[%clk 0:00:42]}  Kd6 {[%clk 0:00:17]} 34. Kd3 {[%clk 0:00:39]}  Re4 {[%clk 0:00:17]} 35. Kd2 {[%clk 0:00:36]}  c5 {[%clk 0:00:17]} 36. bxc5+ {[%clk 0:00:33]}  Kxc5 {[%clk 0:00:17]} 37. Rb1 {[%clk 0:00:33]}  Kc6 {[%clk 0:00:16]} 38. Rb6+ {[%clk 0:00:31]}  Kc7 {[%clk 0:00:16]} 39. Rf6 {[%clk 0:00:31]}  Re7 {[%clk 0:00:12]} 40. Kd3 {[%clk 0:00:29]}  Rd7+ {[%clk 0:00:11]} 41. Kc4 {[%clk 0:00:29]}  Re7 {[%clk 0:00:11]} 42. Kc5 {[%clk 0:00:28]}  Rd7 {[%clk 0:00:10]} 43. c4 {[%clk 0:00:28]}  Re7 {[%clk 0:00:10]} 44. h3 {[%clk 0:00:28]}  Rd7 {[%clk 0:00:10]} 45. g4 {[%clk 0:00:28]}  fxg4 {[%clk 0:00:10]} 46. hxg4 {[%clk 0:00:28]}  Re7 {[%clk 0:00:11]} 47. Kd5 {[%clk 0:00:24]}  Rd7+ {[%clk 0:00:07]} 48. Ke5 {[%clk 0:00:24]}  Re7+ {[%clk 0:00:07]} 49. Re6 {[%clk 0:00:22]}  Kd7 {[%clk 0:00:05]} 50. Rxe7+ {[%clk 0:00:16]}  Kxe7 {[%clk 0:00:06]} 51. g5 {[%clk 0:00:12]}  Kf7 {[%clk 0:00:03]} 52. Kd5 {[%clk 0:00:12]}  Kg7 {[%clk 0:00:01]} 53. Kc5 {[%clk 0:00:12]}  h5 {[%clk 0:00:02]} 54. gxh6+ {[%clk 0:00:11]}  Kxh6 {[%clk 0:00:03]} 55. Kb6 {[%clk 0:00:11]}  Kh5 {[%clk 0:00:03]} 56. Kxb7 {[%clk 0:00:11]}  Kg4 {[%clk 0:00:04]} 57. c5 {[%clk 0:00:12]}  Kxf4 {[%clk 0:00:05]} 58. c6 {[%clk 0:00:12]}  g5 {[%clk 0:00:06]} 59. c7 {[%clk 0:00:12]}  g4 {[%clk 0:00:07]} 60. c8=Q {[%clk 0:00:13]}  g3 {[%clk 0:00:07]} 61. Qc1+ {[%clk 0:00:12]}  Kf3 {[%clk 0:00:08]} 62. Qg1 {[%clk 0:00:12]}  g2 {[%clk 0:00:07]} 63. Kxa6 {[%clk 0:00:13]}  Kg3 {[%clk 0:00:07]} 64. Qxg2+ {[%clk 0:00:12]}  Kxg2 {[%clk 0:00:07]} 65. Kb6 {[%clk 0:00:13]} 1-0


[Site "https://www.chess.com"]

[Event "Titled Tuesday Blitz July 05 Late 2022"]
[White "Petrovic, Aleksa"]
[Black "Wieczorek, Oskar"]
[WhiteFideId "967629"]
[BlackFideId "1133950"]
[WhiteElo "2185"]
[BlackElo "2330"]
[Result "0-1"]
[Round "08"]
[TimeControl "180+1"]
[Date "2022.07.05"]
[WhiteClock "0:00:11"]
[BlackClock "0:00:52"]

1. d4 {[%clk 0:03:00]}  Nf6 {[%clk 0:02:59]} 2. c4 {[%clk 0:03:01]}  c5 {[%clk 0:02:59]} 3. d5 {[%clk 0:03:02]}  g6 {[%clk 0:02:59]} 4. Nc3 {[%clk 0:03:01]}  Bg7 {[%clk 0:03:00]} 5. e4 {[%clk 0:03:02]}  d6 {[%clk 0:03:01]} 6. f3 {[%clk 0:03:02]}  O-O {[%clk 0:02:59]} 7. Nge2 {[%clk 0:03:02]}  b5 {[%clk 0:02:59]} 8. Nxb5 {[%clk 0:03:01]}  Ba6 {[%clk 0:02:56]} 9. Ng3 {[%clk 0:02:51]}  Nfd7 {[%clk 0:02:53]} 10. Be2 {[%clk 0:02:41]}  Bxb5 {[%clk 0:02:53]} 11. cxb5 {[%clk 0:02:41]}  a6 {[%clk 0:02:54]} 12. a4 {[%clk 0:02:20]}  axb5 {[%clk 0:02:53]} 13. Bxb5 {[%clk 0:02:19]}  Na6 {[%clk 0:02:48]} 14. O-O {[%clk 0:02:16]}  Nc7 {[%clk 0:02:48]} 15. Bc6 {[%clk 0:02:08]}  Ra7 {[%clk 0:02:49]} 16. Rb1 {[%clk 0:01:43]}  Ne5 {[%clk 0:02:48]} 17. b4 {[%clk 0:01:39]}  cxb4 {[%clk 0:02:40]} 18. Rxb4 {[%clk 0:01:28]}  Na6 {[%clk 0:02:36]} 19. Rb5 {[%clk 0:01:14]}  Nxc6 {[%clk 0:01:36]} 20. dxc6 {[%clk 0:01:15]}  Qc7 {[%clk 0:01:36]} 21. Be3 {[%clk 0:01:09]}  Nc5 {[%clk 0:01:36]} 22. Bxc5 {[%clk 0:00:41]}  dxc5 {[%clk 0:01:36]} 23. Qd7 {[%clk 0:00:27]}  Qxd7 {[%clk 0:01:27]} 24. cxd7 {[%clk 0:00:28]}  Rxd7 {[%clk 0:01:28]} 25. Ne2 {[%clk 0:00:25]}  Rd2 {[%clk 0:01:27]} 26. Nf4 {[%clk 0:00:23]}  Bd4+ {[%clk 0:01:25]} 27. Kh1 {[%clk 0:00:22]}  e6 {[%clk 0:01:25]} 28. a5 {[%clk 0:00:21]}  Ra8 {[%clk 0:01:24]} 29. h4 {[%clk 0:00:16]}  h5 {[%clk 0:01:22]} 30. Rfb1 {[%clk 0:00:16]}  Kg7 {[%clk 0:01:19]} 31. Rb7 {[%clk 0:00:14]}  Kf6 {[%clk 0:01:11]} 32. g4 {[%clk 0:00:14]}  hxg4 {[%clk 0:01:09]} 33. fxg4 {[%clk 0:00:15]}  Ke5 {[%clk 0:01:10]} 34. Rxf7 {[%clk 0:00:15]}  Rxa5 {[%clk 0:01:07]} 35. Re1 {[%clk 0:00:12]}  Raa2 {[%clk 0:01:02]} 36. Nxg6+ {[%clk 0:00:10]}  Kd6 {[%clk 0:01:02]} 37. e5+ {[%clk 0:00:10]}  Kc6 {[%clk 0:01:00]} 38. Ne7+ {[%clk 0:00:10]}  Kb5 {[%clk 0:00:53]} 39. Rb1+ {[%clk 0:00:11]}  Ka6 {[%clk 0:00:52]} 0-1


[Site "https://www.chess.com"]

[Event "Titled Tuesday Blitz July 05 Late 2022"]
[White "Premnath, R."]
[Black "Urbina Perez, Juan Antonio"]
[WhiteFideId "5021928"]
[BlackFideId "2217368"]
[WhiteElo "2599"]
[BlackElo "2192"]
[Result "1-0"]
[Round "08"]
[TimeControl "180+1"]
[Date "2022.07.06"]
[WhiteClock "0:00:16"]
[BlackClock "0:00:01"]

1. d4 {[%clk 0:03:00]}  d5 {[%clk 0:02:58]} 2. c4 {[%clk 0:03:01]}  c6 {[%clk 0:02:57]} 3. Nf3 {[%clk 0:03:02]}  Nf6 {[%clk 0:02:57]} 4. Nc3 {[%clk 0:03:02]}  a6 {[%clk 0:02:58]} 5. e3 {[%clk 0:03:02]}  Bf5 {[%clk 0:02:57]} 6. Bd3 {[%clk 0:03:03]}  Bxd3 {[%clk 0:02:57]} 7. Qxd3 {[%clk 0:03:03]}  e6 {[%clk 0:02:57]} 8. O-O {[%clk 0:03:04]}  Nbd7 {[%clk 0:02:57]} 9. e4 {[%clk 0:03:03]}  dxe4 {[%clk 0:02:58]} 10. Nxe4 {[%clk 0:03:04]}  Nxe4 {[%clk 0:02:58]} 11. Qxe4 {[%clk 0:03:05]}  Nf6 {[%clk 0:02:57]} 12. Qe2 {[%clk 0:03:05]}  Be7 {[%clk 0:02:57]} 13. Rd1 {[%clk 0:03:04]}  O-O {[%clk 0:02:57]} 14. Bg5 {[%clk 0:03:04]}  Re8 {[%clk 0:02:57]} 15. Rd3 {[%clk 0:03:02]}  h6 {[%clk 0:02:57]} 16. Bh4 {[%clk 0:03:02]}  b5 {[%clk 0:02:51]} 17. b3 {[%clk 0:02:49]}  Nd7 {[%clk 0:02:36]} 18. Bxe7 {[%clk 0:02:47]}  Qxe7 {[%clk 0:02:37]} 19. Rad1 {[%clk 0:02:41]}  bxc4 {[%clk 0:02:37]} 20. bxc4 {[%clk 0:02:41]}  Rab8 {[%clk 0:02:21]} 21. c5 {[%clk 0:02:33]}  e5 {[%clk 0:02:15]} 22. dxe5 {[%clk 0:02:30]}  Nxe5 {[%clk 0:02:16]} 23. Nxe5 {[%clk 0:02:20]}  f6 {[%clk 0:01:39]} 24. Re3 {[%clk 0:01:08]}  fxe5 {[%clk 0:01:35]} 25. Qc4+ {[%clk 0:01:08]}  Qf7 {[%clk 0:01:30]} 26. Qxa6 {[%clk 0:01:03]}  Rb2 {[%clk 0:01:28]} 27. Rf3 {[%clk 0:01:00]}  Qxa2 {[%clk 0:01:22]} 28. Qxc6 {[%clk 0:00:58]}  Qe6 {[%clk 0:01:22]} 29. Qe4 {[%clk 0:00:55]}  Reb8 {[%clk 0:00:41]} 30. h3 {[%clk 0:00:54]}  R2b4 {[%clk 0:00:29]} 31. Qc2 {[%clk 0:00:52]}  Rb2 {[%clk 0:00:27]} 32. Qa4 {[%clk 0:00:49]}  R2b4 {[%clk 0:00:26]} 33. Qa7 {[%clk 0:00:46]}  Rb1 {[%clk 0:00:24]} 34. Rd3 {[%clk 0:00:35]}  Rxd1+ {[%clk 0:00:22]} 35. Rxd1 {[%clk 0:00:35]}  Re8 {[%clk 0:00:22]} 36. Qb7 {[%clk 0:00:30]}  Re7 {[%clk 0:00:21]} 37. Qa8+ {[%clk 0:00:27]}  Kh7 {[%clk 0:00:21]} 38. Qe4+ {[%clk 0:00:25]}  Qg6 {[%clk 0:00:20]} 39. Qd5 {[%clk 0:00:23]}  Qe6 {[%clk 0:00:18]} 40. f3 {[%clk 0:00:19]}  e4 {[%clk 0:00:18]} 41. fxe4 {[%clk 0:00:18]}  Qxe4 {[%clk 0:00:19]} 42. Qxe4+ {[%clk 0:00:18]}  Rxe4 {[%clk 0:00:19]} 43. Rc1 {[%clk 0:00:19]}  Re7 {[%clk 0:00:19]} 44. c6 {[%clk 0:00:19]}  Rc7 {[%clk 0:00:20]} 45. Kf2 {[%clk 0:00:20]}  Kg6 {[%clk 0:00:20]} 46. Ke3 {[%clk 0:00:21]}  Kf6 {[%clk 0:00:21]} 47. Kd4 {[%clk 0:00:21]}  Ke6 {[%clk 0:00:22]} 48. Kc5 {[%clk 0:00:22]}  Rc8 {[%clk 0:00:17]} 49. Re1+ {[%clk 0:00:22]}  Kf7 {[%clk 0:00:17]} 50. Kd6 {[%clk 0:00:22]}  Rd8+ {[%clk 0:00:16]} 51. Kc7 {[%clk 0:00:22]}  Rd2 {[%clk 0:00:17]} 52. g4 {[%clk 0:00:21]}  Rd3 {[%clk 0:00:16]} 53. Rc1 {[%clk 0:00:17]}  Rxh3 {[%clk 0:00:16]} 54. Kc8 {[%clk 0:00:16]}  Kg6 {[%clk 0:00:12]} 55. c7 {[%clk 0:00:17]}  Kg5 {[%clk 0:00:12]} 56. Kd7 {[%clk 0:00:18]}  Rd3+ {[%clk 0:00:12]} 57. Ke7 {[%clk 0:00:18]}  Re3+ {[%clk 0:00:12]} 58. Kf7 {[%clk 0:00:19]}  Rf3+ {[%clk 0:00:02]} 59. Kxg7 {[%clk 0:00:19]}  Kxg4 {[%clk 0:00:02]} 60. c8=Q+ {[%clk 0:00:19]}  Kg3 {[%clk 0:00:02]} 61. Rg1+ {[%clk 0:00:17]}  Kf2 {[%clk 0:00:02]} 62. Qc5+ {[%clk 0:00:17]}  Ke2 {[%clk 0:00:02]} 63. Qe5+ {[%clk 0:00:16]}  Kf2 {[%clk 0:00:02]} 64. Qd4+ {[%clk 0:00:16]}  Ke2 {[%clk 0:00:02]} 65. Qd1+ {[%clk 0:00:16]}  Ke3 {[%clk 0:00:01]} 66. Re1+ {[%clk 0:00:16]}  Kf4 {[%clk 0:00:01]} 67. Qd6+ {[%clk 0:00:16]} 1-0


[Site "https://www.chess.com"]

[Event "Titled Tuesday Blitz July 05 Late 2022"]
[White "Riehle, Marco"]
[Black "Tari, Aryan"]
[WhiteFideId "12904392"]
[BlackFideId "1510045"]
[WhiteElo "2462"]
[BlackElo "2612"]
[Result "1/2-1/2"]
[Round "08"]
[TimeControl "180+1"]
[Date "2022.07.05"]
[WhiteClock "0:00:19"]
[BlackClock "0:00:11"]

1. e4 {[%clk 0:03:00]}  c6 {[%clk 0:02:59]} 2. c4 {[%clk 0:03:00]}  d5 {[%clk 0:03:00]} 3. cxd5 {[%clk 0:03:01]}  cxd5 {[%clk 0:03:00]} 4. exd5 {[%clk 0:03:02]}  Nf6 {[%clk 0:02:59]} 5. Nc3 {[%clk 0:03:02]}  Nxd5 {[%clk 0:03:00]} 6. Nf3 {[%clk 0:03:02]}  Nc6 {[%clk 0:02:54]} 7. Bb5 {[%clk 0:03:01]}  g6 {[%clk 0:02:53]} 8. Qa4 {[%clk 0:02:59]}  Nb6 {[%clk 0:02:49]} 9. Bxc6+ {[%clk 0:02:58]}  bxc6 {[%clk 0:02:50]} 10. Qxc6+ {[%clk 0:02:58]}  Bd7 {[%clk 0:02:50]} 11. Qe4 {[%clk 0:02:59]}  Bg7 {[%clk 0:02:44]} 12. O-O {[%clk 0:02:58]}  Bf5 {[%clk 0:02:37]} 13. Qc6+ {[%clk 0:02:56]}  Bd7 {[%clk 0:02:37]} 14. Qe4 {[%clk 0:02:56]}  O-O {[%clk 0:02:34]} 15. d4 {[%clk 0:02:54]}  Nc4 {[%clk 0:02:34]} 16. b3 {[%clk 0:02:46]}  Nd6 {[%clk 0:02:32]} 17. Qe2 {[%clk 0:02:46]}  Re8 {[%clk 0:02:12]} 18. Bb2 {[%clk 0:02:41]}  Qa5 {[%clk 0:02:07]} 19. Ne5 {[%clk 0:02:37]}  Bc8 {[%clk 0:02:00]} 20. Nc6 {[%clk 0:02:18]}  Qc7 {[%clk 0:01:58]} 21. d5 {[%clk 0:02:18]}  e6 {[%clk 0:01:37]} 22. Rac1 {[%clk 0:01:36]}  Bb7 {[%clk 0:01:11]} 23. Qf3 {[%clk 0:01:17]}  Qd7 {[%clk 0:00:45]} 24. Na4 {[%clk 0:01:12]}  Bxb2 {[%clk 0:00:42]} 25. Nxb2 {[%clk 0:01:12]}  exd5 {[%clk 0:00:38]} 26. Nd4 {[%clk 0:01:11]}  Ne4 {[%clk 0:00:38]} 27. Rfd1 {[%clk 0:01:09]}  Rac8 {[%clk 0:00:37]} 28. h3 {[%clk 0:01:08]}  Ba6 {[%clk 0:00:32]} 29. Na4 {[%clk 0:01:03]}  Qd6 {[%clk 0:00:32]} 30. Qg4 {[%clk 0:00:55]}  h5 {[%clk 0:00:29]} 31. Qf3 {[%clk 0:00:51]}  Qa3 {[%clk 0:00:20]} 32. Ra1 {[%clk 0:00:32]}  Re7 {[%clk 0:00:19]} 33. Qf4 {[%clk 0:00:30]}  Rce8 {[%clk 0:00:11]} 34. Nf3 {[%clk 0:00:30]}  Bb5 {[%clk 0:00:06]} 35. Rxd5 {[%clk 0:00:27]}  Bxa4 {[%clk 0:00:07]} 36. bxa4 {[%clk 0:00:28]}  Nc3 {[%clk 0:00:08]} 37. Rd2 {[%clk 0:00:26]}  Ne2+ {[%clk 0:00:08]} 38. Rxe2 {[%clk 0:00:26]}  Rxe2 {[%clk 0:00:08]} 39. Qd4 {[%clk 0:00:23]}  Qb2 {[%clk 0:00:07]} 40. a5 {[%clk 0:00:21]}  Qxd4 {[%clk 0:00:07]} 41. Nxd4 {[%clk 0:00:22]}  Rd2 {[%clk 0:00:06]} 42. Nb5 {[%clk 0:00:21]}  Re7 {[%clk 0:00:05]} 43. a4 {[%clk 0:00:19]}  a6 {[%clk 0:00:04]} 44. Na3 {[%clk 0:00:19]}  Rd5 {[%clk 0:00:04]} 45. Nc4 {[%clk 0:00:19]}  Rc7 {[%clk 0:00:05]} 46. Ne3 {[%clk 0:00:17]}  Rxa5 {[%clk 0:00:05]} 47. Ra3 {[%clk 0:00:18]}  Rac5 {[%clk 0:00:06]} 48. Rb3 {[%clk 0:00:18]}  Rc1+ {[%clk 0:00:06]} 49. Kh2 {[%clk 0:00:18]}  Ra1 {[%clk 0:00:07]} 50. Rb4 {[%clk 0:00:18]}  a5 {[%clk 0:00:06]} 51. Rf4 {[%clk 0:00:18]}  Rc5 {[%clk 0:00:07]} 52. g4 {[%clk 0:00:17]}  hxg4 {[%clk 0:00:06]} 53. hxg4 {[%clk 0:00:18]}  Kg7 {[%clk 0:00:07]} 54. Kg3 {[%clk 0:00:18]}  Rb1 {[%clk 0:00:07]} 55. Rd4 {[%clk 0:00:14]}  Rb4 {[%clk 0:00:08]} 56. Rd7 {[%clk 0:00:15]}  Rxa4 {[%clk 0:00:08]} 57. Ra7 {[%clk 0:00:16]}  Ra3 {[%clk 0:00:08]} 58. Kf3 {[%clk 0:00:16]}  a4 {[%clk 0:00:08]} 59. Ke4 {[%clk 0:00:16]}  Ra1 {[%clk 0:00:08]} 60. f4 {[%clk 0:00:16]}  a3 {[%clk 0:00:09]} 61. g5 {[%clk 0:00:17]}  Rb5 {[%clk 0:00:07]} 62. Ng4 {[%clk 0:00:17]}  Rb4+ {[%clk 0:00:08]} 63. Ke3 {[%clk 0:00:16]}  Re1+ {[%clk 0:00:07]} 64. Kf2 {[%clk 0:00:16]}  Ree4 {[%clk 0:00:06]} 65. Nf6 {[%clk 0:00:16]}  Rxf4+ {[%clk 0:00:07]} 66. Kg3 {[%clk 0:00:16]}  Rxf6 {[%clk 0:00:07]} 67. gxf6+ {[%clk 0:00:17]}  Kxf6 {[%clk 0:00:08]} 68. Rxa3 {[%clk 0:00:17]}  g5 {[%clk 0:00:08]} 69. Ra6+ {[%clk 0:00:17]}  Kf5 {[%clk 0:00:09]} 70. Ra5+ {[%clk 0:00:18]}  Kg6 {[%clk 0:00:09]} 71. Ra8 {[%clk 0:00:18]}  Rb3+ {[%clk 0:00:09]} 72. Kf2 {[%clk 0:00:17]}  f5 {[%clk 0:00:09]} 73. Kg2 {[%clk 0:00:18]}  g4 {[%clk 0:00:09]} 74. Ra6+ {[%clk 0:00:17]}  Kg5 {[%clk 0:00:10]} 75. Ra2 {[%clk 0:00:18]}  f4 {[%clk 0:00:10]} 76. Kf2 {[%clk 0:00:18]}  Kh4 {[%clk 0:00:10]} 77. Ke2 {[%clk 0:00:18]}  Kh3 {[%clk 0:00:10]} 78. Kd2 {[%clk 0:00:18]}  g3 {[%clk 0:00:10]} 79. Kc2 {[%clk 0:00:18]}  Re3 {[%clk 0:00:09]} 80. Ra8 {[%clk 0:00:18]}  g2 {[%clk 0:00:09]} 81. Rh8+ {[%clk 0:00:18]}  Kg3 {[%clk 0:00:10]} 82. Rg8+ {[%clk 0:00:19]}  Kf2 {[%clk 0:00:10]} 83. Kb2 {[%clk 0:00:18]}  g1=Q {[%clk 0:00:11]} 84. Rc8 {[%clk 0:00:19]}  Qf1 {[%clk 0:00:09]} 85. Rc2+ {[%clk 0:00:19]}  Qe2 {[%clk 0:00:10]} 86. Kb1 {[%clk 0:00:19]}  Qxc2+ {[%clk 0:00:10]} 87. Ka1 {[%clk 0:00:19]}  Ke2 {[%clk 0:00:11]} 1/2-1/2


[Site "https://www.chess.com"]

[Event "Titled Tuesday Blitz July 05 Late 2022"]
[White "Roman, Rodrigo"]
[Black "Jorquera, Marcelo"]
[WhiteFideId "3701220"]
[BlackFideId "3401197"]
[WhiteElo "2001"]
[BlackElo "2136"]
[Result "0-1"]
[Round "08"]
[TimeControl "180+1"]
[Date "2022.07.06"]
[WhiteClock "0:00:26"]
[BlackClock "0:00:19"]

1. e4 {[%clk 0:03:00]}  d5 {[%clk 0:02:59]} 2. exd5 {[%clk 0:02:55]}  Qxd5 {[%clk 0:03:00]} 3. Nc3 {[%clk 0:02:55]}  Qa5 {[%clk 0:03:01]} 4. d4 {[%clk 0:02:54]}  Nf6 {[%clk 0:03:01]} 5. Nf3 {[%clk 0:02:54]}  Bf5 {[%clk 0:02:59]} 6. Bd3 {[%clk 0:02:53]}  e6 {[%clk 0:02:52]} 7. O-O {[%clk 0:02:52]}  Be7 {[%clk 0:02:46]} 8. Ne2 {[%clk 0:02:30]}  Bxd3 {[%clk 0:02:39]} 9. Qxd3 {[%clk 0:02:31]}  c6 {[%clk 0:02:38]} 10. c4 {[%clk 0:02:29]}  O-O {[%clk 0:02:36]} 11. Bd2 {[%clk 0:02:29]}  Qd8 {[%clk 0:02:33]} 12. Bc3 {[%clk 0:02:29]}  Nbd7 {[%clk 0:02:33]} 13. Rad1 {[%clk 0:02:28]}  Qc8 {[%clk 0:02:16]} 14. Nf4 {[%clk 0:02:27]}  Bd6 {[%clk 0:02:12]} 15. Ne5 {[%clk 0:02:12]}  Qc7 {[%clk 0:02:05]} 16. b4 {[%clk 0:01:43]}  Nxe5 {[%clk 0:01:57]} 17. dxe5 {[%clk 0:01:43]}  Bxe5 {[%clk 0:01:57]} 18. Bxe5 {[%clk 0:01:39]}  Qxe5 {[%clk 0:01:58]} 19. Qf3 {[%clk 0:01:33]}  Qf5 {[%clk 0:01:54]} 20. Qe3 {[%clk 0:01:31]}  Qe4 {[%clk 0:01:45]} 21. Qxe4 {[%clk 0:01:28]}  Nxe4 {[%clk 0:01:45]} 22. Rd7 {[%clk 0:01:29]}  Rab8 {[%clk 0:01:41]} 23. f3 {[%clk 0:01:25]}  Nf6 {[%clk 0:01:38]} 24. Rd6 {[%clk 0:01:23]}  Rfd8 {[%clk 0:01:33]} 25. Rfd1 {[%clk 0:01:23]}  Rxd6 {[%clk 0:01:31]} 26. Rxd6 {[%clk 0:01:24]}  Kf8 {[%clk 0:01:30]} 27. Kf2 {[%clk 0:01:16]}  Ke7 {[%clk 0:01:30]} 28. Rd3 {[%clk 0:01:11]}  Rd8 {[%clk 0:01:30]} 29. g4 {[%clk 0:01:10]}  h6 {[%clk 0:01:24]} 30. h4 {[%clk 0:01:09]}  Rxd3 {[%clk 0:01:20]} 31. Nxd3 {[%clk 0:01:08]}  Nd7 {[%clk 0:01:19]} 32. f4 {[%clk 0:01:04]}  f6 {[%clk 0:01:17]} 33. Kf3 {[%clk 0:01:03]}  Kd6 {[%clk 0:01:12]} 34. Ke4 {[%clk 0:01:01]}  b6 {[%clk 0:01:04]} 35. a3 {[%clk 0:00:51]}  Nb8 {[%clk 0:01:02]} 36. c5+ {[%clk 0:00:49]}  Kc7 {[%clk 0:00:56]} 37. g5 {[%clk 0:00:45]}  Nd7 {[%clk 0:00:42]} 38. cxb6+ {[%clk 0:00:37]}  axb6 {[%clk 0:00:40]} 39. Kd4 {[%clk 0:00:38]}  Kd6 {[%clk 0:00:35]} 40. a4 {[%clk 0:00:35]}  e5+ {[%clk 0:00:27]} 41. fxe5+ {[%clk 0:00:34]}  Nxe5 {[%clk 0:00:25]} 42. gxh6 {[%clk 0:00:23]}  gxh6 {[%clk 0:00:23]} 43. a5 {[%clk 0:00:17]}  Nxd3 {[%clk 0:00:18]} 44. Kxd3 {[%clk 0:00:17]}  bxa5 {[%clk 0:00:18]} 45. bxa5 {[%clk 0:00:18]}  Kc5 {[%clk 0:00:17]} 46. Ke4 {[%clk 0:00:18]}  Kb5 {[%clk 0:00:18]} 47. Kf5 {[%clk 0:00:19]}  c5 {[%clk 0:00:17]} 48. Kxf6 {[%clk 0:00:20]}  c4 {[%clk 0:00:17]} 49. Ke5 {[%clk 0:00:20]}  c3 {[%clk 0:00:16]} 50. Kf5 {[%clk 0:00:21]}  c2 {[%clk 0:00:16]} 51. Ke6 {[%clk 0:00:22]}  c1=Q {[%clk 0:00:16]} 52. Ke5 {[%clk 0:00:22]}  Kxa5 {[%clk 0:00:16]} 53. Kf6 {[%clk 0:00:23]}  Qf4+ {[%clk 0:00:15]} 54. Ke6 {[%clk 0:00:24]}  Qxh4 {[%clk 0:00:16]} 55. Kd6 {[%clk 0:00:24]}  Qg5 {[%clk 0:00:16]} 56. Ke6 {[%clk 0:00:25]}  h5 {[%clk 0:00:17]} 57. Kd7 {[%clk 0:00:26]}  h4 {[%clk 0:00:18]} 58. Ke6 {[%clk 0:00:26]}  h3 {[%clk 0:00:19]} 59. Kf7 {[%clk 0:00:26]}  h2 {[%clk 0:00:20]} 60. Kf8 {[%clk 0:00:26]}  h1=Q {[%clk 0:00:21]} 61. Kf7 {[%clk 0:00:25]}  Qh7+ {[%clk 0:00:19]} 62. Ke8 {[%clk 0:00:26]}  Qhe7# {[%clk 0:00:19]} 0-1


[Site "https://www.chess.com"]

[Event "Titled Tuesday Blitz July 05 Late 2022"]
[White "Salem, A.R. Saleh"]
[Black "Halkias, Stelios"]
[WhiteFideId "9301348"]
[BlackFideId "4201809"]
[WhiteElo "2679"]
[BlackElo "2453"]
[Result "0-1"]
[Round "08"]
[TimeControl "180+1"]
[Date "2022.07.05"]
[WhiteClock "0:00:02"]
[BlackClock "0:00:18"]

1. d4 {[%clk 0:03:00]}  Nf6 {[%clk 0:02:58]} 2. c4 {[%clk 0:03:01]}  e6 {[%clk 0:02:58]} 3. Nc3 {[%clk 0:03:02]}  Bb4 {[%clk 0:02:57]} 4. e3 {[%clk 0:03:02]}  O-O {[%clk 0:02:57]} 5. Bd3 {[%clk 0:03:03]}  d5 {[%clk 0:02:57]} 6. Nf3 {[%clk 0:03:04]}  c5 {[%clk 0:02:58]} 7. O-O {[%clk 0:03:04]}  dxc4 {[%clk 0:02:58]} 8. Bxc4 {[%clk 0:03:05]}  Nbd7 {[%clk 0:02:59]} 9. a3 {[%clk 0:03:03]}  Ba5 {[%clk 0:02:58]} 10. Qd3 {[%clk 0:03:03]}  a6 {[%clk 0:02:58]} 11. dxc5 {[%clk 0:02:58]}  Bxc3 {[%clk 0:02:49]} 12. Qxc3 {[%clk 0:02:59]}  Nxc5 {[%clk 0:02:50]} 13. b4 {[%clk 0:02:49]}  Nce4 {[%clk 0:02:43]} 14. Qb3 {[%clk 0:02:09]}  b5 {[%clk 0:02:30]} 15. Bd3 {[%clk 0:01:53]}  Bb7 {[%clk 0:02:29]} 16. Bb2 {[%clk 0:01:48]}  Bd5 {[%clk 0:01:51]} 17. Qd1 {[%clk 0:01:44]}  Bc4 {[%clk 0:01:44]} 18. Ne5 {[%clk 0:01:40]}  Rc8 {[%clk 0:01:37]} 19. Nxc4 {[%clk 0:01:13]}  bxc4 {[%clk 0:01:36]} 20. Bc2 {[%clk 0:01:10]}  c3 {[%clk 0:01:35]} 21. Bc1 {[%clk 0:01:09]}  Qb6 {[%clk 0:01:30]} 22. Qe2 {[%clk 0:00:53]}  Rfd8 {[%clk 0:01:26]} 23. Rd1 {[%clk 0:00:51]}  Rxd1+ {[%clk 0:01:14]} 24. Qxd1 {[%clk 0:00:52]}  Rd8 {[%clk 0:01:10]} 25. Qe2 {[%clk 0:00:47]}  Nd2 {[%clk 0:01:09]} 26. h3 {[%clk 0:00:42]}  h5 {[%clk 0:01:09]} 27. Qe1 {[%clk 0:00:24]}  Qc6 {[%clk 0:00:59]} 28. a4 {[%clk 0:00:21]}  Qc4 {[%clk 0:00:56]} 29. Ba3 {[%clk 0:00:21]}  Nd5 {[%clk 0:00:53]} 30. b5 {[%clk 0:00:10]}  axb5 {[%clk 0:00:50]} 31. axb5 {[%clk 0:00:11]}  Qxb5 {[%clk 0:00:49]} 32. Bc1 {[%clk 0:00:11]}  Nb4 {[%clk 0:00:47]} 33. Bd1 {[%clk 0:00:08]}  Qf5 {[%clk 0:00:33]} 34. Qe2 {[%clk 0:00:05]}  Ne4 {[%clk 0:00:21]} 35. Bb3 {[%clk 0:00:04]}  c2 {[%clk 0:00:19]} 36. Bxc2 {[%clk 0:00:03]}  Nc3 {[%clk 0:00:19]} 37. Bxf5 {[%clk 0:00:02]}  Nxe2+ {[%clk 0:00:19]} 38. Kf1 {[%clk 0:00:03]}  Nxc1 {[%clk 0:00:19]} 39. Bxe6 {[%clk 0:00:02]}  Rd1# {[%clk 0:00:18]} 0-1


[Site "https://www.chess.com"]